fUST/lending_fUST_20241205
["ID","MTS","AMOUNT","RATE_DAILY","PERIOD"]
[344305661,1733334644282,-201.80379649,0.00025479,7]
[344305662,1733334644291,-500.0,0.00025479,7]
[344305663,1733334644301,-500.0,0.00025479,7]
[344305664,1733334644310,-1598.25,0.00025479,7]
[344305665,1733334644318,-576.12,0.00025479,7]
[344305666,1733334644328,-500.0,0.00025479,7]
[344305667,1733334644337,-500.0,0.00025479,7]
[344305668,1733334644359,-500.0,0.00025479,7]
[344305669,1733334644368,-500.0,0.00025479,7]
[344305670,1733334644378,-728.12,0.00025479,7]
[344305671,1733334644387,-500.0,0.00025479,7]
[344305672,1733334644396,-566.61,0.00025479,7]
[344305673,1733334644405,-677.33,0.00025479,7]
[344305674,1733334644414,-500.0,0.00025479,7]
[344305675,1733334644423,-500.0,0.00025479,7]
[344305676,1733334644432,-500.0,0.00025479,7]
[344305677,1733334644442,-536.73,0.00025479,7]
[344305678,1733334644452,-699.21,0.00025479,7]
[344305679,1733334644461,-500.0,0.00025479,7]
[344305680,1733334644471,-500.0,0.00025479,7]
[344305681,1733334644480,-505.55,0.00025479,7]
[344305682,1733334644490,-6570.32,0.00025479,7]
[344305683,1733334644499,-500.0,0.00025479,7]
[344305684,1733334644508,-500.0,0.00025479,7]
[344305685,1733334644517,-679.43,0.00025479,7]
[344305686,1733334644527,-500.0,0.00025479,7]
[344305687,1733334644536,-500.0,0.00025753,7]
[344305688,1733334644546,-500.0,0.00025753,7]
[344305689,1733334644555,-500.0,0.00025753,7]
[344305690,1733334644564,-500.0,0.00025753,7]
[344305691,1733334644574,-500.0,0.00025753,7]
[344305692,1733334644583,-500.0,0.00025753,7]
[344305693,1733334644593,-500.0,0.00025753,7]
[344305694,1733334644602,-500.0,0.00025753,7]
[344305695,1733334644612,-795.19,0.00025753,7]
[344305696,1733334644622,-500.0,0.00025753,7]
[344305697,1733334644631,-594.09,0.00025753,7]
[344305698,1733334644641,-500.0,0.00025753,7]
[344305699,1733334644652,-500.0,0.00025753,7]
[344305700,1733334644661,-500.0,0.00025753,7]
[344305701,1733334644670,-500.0,0.00025753,7]
[344305702,1733334644679,-483.37504519,0.00025753,7]
[344305703,1733334644689,-574.89,0.00025753,7]
[344305704,1733334644699,-1230.63,0.00025753,7]
[344305705,1733334644708,-500.0,0.00025753,7]
[344305706,1733334644717,-500.0,0.00025753,7]
[344305707,1733334644726,-500.0,0.00025753,7]
[344305708,1733334644736,-621.48,0.00025753,7]
[344305709,1733334644745,-500.0,0.00025753,7]
[344305710,1733334644754,-580.81,0.00025753,7]
[344305711,1733334644763,-500.0,0.00025753,7]
[344305712,1733334644773,-500.0,0.00025753,7]
[344305713,1733334644782,-500.0,0.00025753,7]
[344305714,1733334644792,-500.0,0.00025753,7]
[344305715,1733334644801,-500.0,0.00025753,7]
[344305716,1733334644810,-500.0,0.00025753,7]
[344305717,1733334644820,-500.0,0.00025753,7]
[344305718,1733334644830,-564.44,0.00025753,7]
[344305719,1733334644839,-500.0,0.00025753,7]
[344305720,1733334644856,-500.0,0.00025753,7]
[344305721,1733334644870,-500.0,0.00025753,7]
[344305722,1733334644879,-500.0,0.00025753,7]
[344305723,1733334644889,-500.0,0.00025753,7]
[344305724,1733334644899,-500.0,0.00025753,7]
[344305725,1733334644908,-654.24,0.00025753,7]
[344305726,1733334644918,-500.0,0.00025753,7]
[344305727,1733334644928,-500.0,0.00025753,7]
[344305728,1733334644937,-500.0,0.00025753,7]
[344305729,1733334644948,-500.0,0.00025753,7]
[344305730,1733334644962,-500.0,0.00025753,7]
[344305731,1733334644971,-1352.12,0.00025753,7]
[344305732,1733334644981,-500.0,0.00025753,7]
[344305733,1733334644990,-500.0,0.00025753,7]
[344305734,1733334645001,-500.0,0.00025753,7]
[344305735,1733334645011,-500.0,0.00025753,7]
[344305736,1733334645020,-2703.86,0.00025753,7]
[344305737,1733334645032,-500.0,0.00025753,7]
[344305738,1733334645041,-1126.44,0.00025753,7]
[344305739,1733334645051,-500.0,0.00025753,7]
[344305740,1733334645060,-550.66,0.00025753,7]
[344305741,1733334645069,-500.0,0.00025753,7]
[344305742,1733334645079,-1275.99,0.00025753,7]
[344305743,1733334645088,-526.39,0.00025753,7]
[344305744,1733334645109,-500.0,0.00025753,7]
[344305745,1733334645120,-789.05,0.00025753,7]
[344305746,1733334645130,-500.0,0.00025753,7]
[344305747,1733334645139,-547.86,0.00025753,7]
[344305748,1733334645149,-933.92,0.00025753,7]
[344305749,1733334645158,-500.0,0.00025753,7]
[344305750,1733334645168,-591.06,0.00025753,7]
[344305751,1733334645177,-1813.04,0.00025753,7]
[344305752,1733334645186,-500.0,0.00025753,7]
[344305753,1733334645195,-506.93,0.00025753,7]
[344305754,1733334645204,-500.0,0.00025753,7]
[344305755,1733334645214,-500.0,0.00025753,7]
[344305756,1733334645223,-1598.25,0.00025753,7]
[344305757,1733334645232,-576.12,0.00025753,7]
[344305758,1733334645241,-500.0,0.00025753,7]
[344305759,1733334645250,-500.0,0.00025753,7]
[344305760,1733334645259,-500.0,0.00025753,7]
[344305761,1733334645268,-500.0,0.00025753,7]
[344305762,1733334645278,-728.12,0.00025753,7]
[344305763,1733334645287,-500.0,0.00025753,7]
[344305764,1733334645296,-566.61,0.00025753,7]
[344305765,1733334645306,-677.33,0.00025753,7]
[344305766,1733334645315,-500.0,0.00025753,7]
[344305767,1733334645325,-500.0,0.00025753,7]
[344305768,1733334645334,-171.93255698,0.00025753,7]
[344305769,1733334645355,-536.73,0.00025753,7]
[344305770,1733334645364,-699.21,0.00025753,7]
[344305772,1733334645374,-500.0,0.00025753,7]
[344305774,1733334645383,-500.0,0.00025753,7]
[344305776,1733334645393,-505.55,0.00025753,7]
[344305781,1733334645403,-6570.32,0.00025753,7]
[344305782,1733334645452,-500.0,0.00025753,7]
[344305783,1733334645461,-247.15383549,0.00025753,7]
[344305784,1733334645471,-679.43,0.00025753,7]
[344305785,1733334645480,-500.0,0.00025753,7]
[344305786,1733334645490,-1000.0,0.00025809,2]
[344305787,1733334645499,-231.0,0.0002589,2]
[344305788,1733334645509,-526.73283209,0.00026027,7]
[344305789,1733334645518,-500.0,0.00026027,7]
[344305790,1733334645527,-500.0,0.00026027,7]
[344305791,1733334645538,-500.0,0.00026027,7]
[344305792,1733334645548,-500.0,0.00026027,7]
[344305793,1733334645558,-500.0,0.00026027,7]
[344305794,1733334645567,-500.0,0.00026027,7]
[344305795,1733334645577,-500.0,0.00026027,7]
[344305796,1733334645586,-795.19,0.00026027,7]
[344305797,1733334645609,-500.0,0.00026027,7]
[344305798,1733334645619,-594.09,0.00026027,7]
[344305799,1733334645629,-500.0,0.00026027,7]
[344305800,1733334645639,-500.02,0.00026027,7]
[344305801,1733334645650,-500.0,0.00026027,7]
[344305802,1733334645660,-500.0,0.00026027,7]
[344305804,1733334645670,-574.89,0.00026027,7]
[344305805,1733334645681,-1230.63,0.00026027,7]
[344305806,1733334645690,-500.0,0.00026027,7]
[344305807,1733334645700,-500.0,0.00026027,7]
[344305808,1733334645710,-500.0,0.00026027,7]
[344305809,1733334645719,-621.48,0.00026027,7]
[344305810,1733334645728,-500.0,0.00026027,7]
[344305811,1733334645738,-580.81,0.00026027,7]
[344305812,1733334645748,-500.0,0.00026027,7]
[344305813,1733334645757,-271.637635,0.00026027,7]
[344305814,1733334645767,-500.0,0.00026027,7]
[344305816,1733334645777,-524.88664275,0.00026027,7]
[344305818,1733334645787,-500.0,0.00026027,7]
[344305819,1733334645796,-500.0,0.00026027,7]
[344305821,1733334645805,-500.0,0.00026027,7]
[344305822,1733334645814,-564.44,0.00026027,7]
[344305823,1733334645823,-500.0,0.00026027,7]
[344305824,1733334645833,-500.0,0.00026027,7]
[344305825,1733334645850,-500.0,0.00026027,7]
[344305826,1733334645861,-500.0,0.00026027,7]
[344305828,1733334645871,-500.0,0.00026027,7]
[344305829,1733334645879,-500.0,0.00026027,7]
[344305830,1733334645888,-654.24,0.00026027,7]
[344305831,1733334645897,-500.0,0.00026027,7]
[344305832,1733334645907,-500.0,0.00026027,7]
[344305833,1733334645915,-500.0,0.00026027,7]
[344305834,1733334645924,-500.0,0.00026027,7]
[344305836,1733334645934,-500.0,0.00026027,7]
[344305837,1733334645943,-1352.12,0.00026027,7]
[344305838,1733334645952,-500.0,0.00026027,7]
[344305839,1733334645962,-500.0,0.00026027,7]
[344305840,1733334645976,-500.0,0.00026027,7]
[344305841,1733334645985,-500.0,0.00026027,7]
[344305842,1733334645994,-2703.86,0.00026027,7]
[344305843,1733334646004,-500.0,0.00026027,7]
[344305844,1733334646013,-1126.44,0.00026027,7]
[344305845,1733334646022,-500.0,0.00026027,7]
[344305846,1733334646031,-550.66,0.00026027,7]
[344305847,1733334646040,-500.0,0.00026027,7]
[344305848,1733334646051,-1275.99,0.00026027,7]
[344305849,1733334646062,-526.39,0.00026027,7]
[344305850,1733334646071,-500.0,0.00026027,7]
[344305851,1733334646081,-789.05,0.00026027,7]
[344305852,1733334646090,-500.0,0.00026027,7]
[344305853,1733334646112,-547.86,0.00026027,7]
[344305854,1733334646122,-933.92,0.00026027,7]
[344305855,1733334646131,-500.0,0.00026027,7]
[344305856,1733334646140,-591.06,0.00026027,7]
[344305857,1733334646149,-1813.04,0.00026027,7]
[344305858,1733334646159,-500.0,0.00026027,7]
[344305859,1733334646168,-506.93,0.00026027,7]
[344305860,1733334646178,-500.0,0.00026027,7]
[344305861,1733334646187,-500.0,0.00026027,7]
[344305862,1733334646196,-1598.25,0.00026027,7]
[344305863,1733334646205,-576.12,0.00026027,7]
[344305864,1733334646214,-500.0,0.00026027,7]
[344305865,1733334646223,-500.0,0.00026027,7]
[344305866,1733334646232,-500.0,0.00026027,7]
[344305867,1733334646241,-500.0,0.00026027,7]
[344305868,1733334646251,-728.12,0.00026027,7]
[344305869,1733334646259,-500.0,0.00026027,7]
[344305870,1733334646269,-566.61,0.00026027,7]
[344305871,1733334646278,-677.33,0.00026027,7]
[344305872,1733334646287,-500.0,0.00026027,7]
[344305873,1733334646296,-500.0,0.00026027,7]
[344305874,1733334646305,-536.73,0.00026027,7]
[344305875,1733334646314,-699.21,0.00026027,7]
[344305876,1733334646323,-500.0,0.00026027,7]
[344305877,1733334646332,-500.0,0.00026027,7]
[344305878,1733334646344,-505.55,0.00026027,7]
[344305879,1733334646358,-6570.32,0.00026027,7]
[344305880,1733334646367,-500.0,0.00026027,7]
[344305881,1733334646376,-679.43,0.00026027,7]
[344305882,1733334646385,-500.0,0.00026027,7]
[344305883,1733334646394,-155.0031828,0.00026035,2]
[344305884,1733334646404,-150.0,0.00026232,2]
[344305885,1733334646413,-500.0,0.00026301,7]
[344305886,1733334646422,-500.0,0.00026301,7]
[344305887,1733334646430,-500.0,0.00026301,7]
[344305888,1733334646439,-500.0,0.00026301,7]
[344305889,1733334646448,-500.0,0.00026301,7]
[344305890,1733334646457,-500.0,0.00026301,7]
[344305891,1733334646466,-500.0,0.00026301,7]
[344305892,1733334646476,-795.19,0.00026301,7]
[344305893,1733334646486,-500.0,0.00026301,7]
[344305894,1733334646495,-594.09,0.00026301,7]
[344305895,1733334646504,-500.0,0.00026301,7]
[344305896,1733334646514,-500.0,0.00026301,7]
[344305897,1733334646523,-500.0,0.00026301,7]
[344305898,1733334646532,-574.89,0.00026301,7]
[344305899,1733334646542,-1230.63,0.00026301,7]
[344305900,1733334646551,-500.0,0.00026301,7]
[344305901,1733334646561,-392.3026461,0.00026301,7]
[344305902,1733334646571,-500.0,0.00026301,7]
[344305903,1733334646580,-621.48,0.00026301,7]
[344305904,1733334646589,-500.0,0.00026301,7]
[344305905,1733334646602,-580.81,0.00026301,7]
[344305906,1733334646612,-500.0,0.00026301,7]
[344305907,1733334646622,-500.0,0.00026301,7]
[344305908,1733334646631,-500.0,0.00026301,7]
[344305909,1733334646641,-500.0,0.00026301,7]
[344305910,1733334646651,-500.0,0.00026301,7]
[344305911,1733334646660,-564.44,0.00026301,7]
[344305912,1733334646670,-500.0,0.00026301,7]
[344305913,1733334646679,-500.0,0.00026301,7]
[344305914,1733334646689,-500.0,0.00026301,7]
[344305915,1733334646699,-500.0,0.00026301,7]
[344305916,1733334646709,-500.0,0.00026301,7]
[344305917,1733334646719,-500.0,0.00026301,7]
[344305918,1733334646729,-654.24,0.00026301,7]
[344305919,1733334646738,-500.0,0.00026301,7]
[344305920,1733334646748,-500.0,0.00026301,7]
[344305921,1733334646757,-500.0,0.00026301,7]
[344305922,1733334646766,-391.96693964,0.00026301,7]
[344305923,1733334646777,-500.0,0.00026301,7]
[344305924,1733334646787,-1352.12,0.00026301,7]
[344305925,1733334646796,-500.0,0.00026301,7]
[344305926,1733334646806,-500.0,0.00026301,7]
[344305927,1733334646815,-500.0,0.00026301,7]
[344305928,1733334646825,-500.0,0.00026301,7]
[344305929,1733334646834,-2703.86,0.00026301,7]
[344305930,1733334646846,-500.0,0.00026301,7]
[344305931,1733334646856,-1126.44,0.00026301,7]
[344305932,1733334646865,-500.0,0.00026301,7]
[344305933,1733334646874,-550.66,0.00026301,7]
[344305934,1733334646883,-500.0,0.00026301,7]
[344305935,1733334646893,-1275.99,0.00026301,7]
[344305936,1733334646903,-526.39,0.00026301,7]
[344305937,1733334646912,-500.0,0.00026301,7]
[344305938,1733334646922,-789.05,0.00026301,7]
[344305939,1733334646931,-500.0,0.00026301,7]
[344305940,1733334646941,-547.86,0.00026301,7]
[344305941,1733334646951,-933.92,0.00026301,7]
[344305942,1733334646963,-500.0,0.00026301,7]
[344305943,1733334646973,-591.06,0.00026301,7]
[344305944,1733334646983,-1813.04,0.00026301,7]
[344305945,1733334646992,-500.0,0.00026301,7]
[344305946,1733334647003,-506.93,0.00026301,7]
[344305947,1733334647013,-500.0,0.00026301,7]
[344305948,1733334647022,-500.0,0.00026301,7]
[344305949,1733334647032,-1598.25,0.00026301,7]
[344305950,1733334647041,-576.12,0.00026301,7]
[344305951,1733334647051,-500.0,0.00026301,7]
[344305952,1733334647061,-500.0,0.00026301,7]
[344305953,1733334647070,-500.0,0.00026301,7]
[344305954,1733334647079,-500.0,0.00026301,7]
[344305955,1733334647089,-728.12,0.00026301,7]
[344305956,1733334647101,-500.0,0.00026301,7]
[344305957,1733334647110,-566.61,0.00026301,7]
[344305958,1733334647120,-677.33,0.00026301,7]
[344305959,1733334647129,-500.0,0.00026301,7]
[344305960,1733334647139,-500.0,0.00026301,7]
[344305961,1733334647148,-536.73,0.00026301,7]
[344305962,1733334647158,-699.21,0.00026301,7]
[344305963,1733334647167,-291.30937437,0.00026301,7]
[344305964,1733334647176,-500.0,0.00026301,7]
[344305965,1733334647185,-505.55,0.00026301,7]
[344305966,1733334647195,-6570.32,0.00026301,7]
[344305967,1733334647204,-500.0,0.00026301,7]
[344305968,1733334647213,-679.43,0.00026301,7]
[344305969,1733334647223,-500.0,0.00026301,7]
[344305970,1733334647232,-153.0,0.00026301,2]
[344305971,1733334647242,-153.0,0.00026301,2]
[344305972,1733334647251,-153.0,0.00026301,2]
[344305973,1733334647261,-153.0,0.00026301,2]
[344305974,1733334647271,-660.0,0.00026384,2]
[344305975,1733334647281,-6305.9339122,0.00026422,2]
[344305976,1733334647291,-152.39915339,0.00026513,2]
[344305977,1733334647301,-587.0,0.00026522,2]
[344305978,1733334647311,-500.0,0.00026575,7]
[344305979,1733334647321,-500.0,0.00026575,7]
[344305980,1733334647331,-500.0,0.00026575,7]
[344305981,1733334647340,-500.0,0.00026575,7]
[344305982,1733334647353,-500.0,0.00026575,7]
[344305983,1733334647363,-500.0,0.00026575,7]
[344305984,1733334647372,-500.0,0.00026575,7]
[344305985,1733334647383,-795.19,0.00026575,7]
[344305986,1733334647393,-500.0,0.00026575,7]
[344305987,1733334647403,-594.09,0.00026575,7]
[344305988,1733334647413,-500.0,0.00026575,7]
[344305989,1733334647423,-500.0,0.00026575,7]
[344305990,1733334647433,-500.0,0.00026575,7]
[344305991,1733334647443,-574.89,0.00026575,7]
[344305992,1733334647453,-1230.63,0.00026575,7]
[344305993,1733334647464,-500.0,0.00026575,7]
[344305994,1733334647473,-500.0,0.00026575,7]
[344305995,1733334647483,-621.48,0.00026575,7]
[344305996,1733334647493,-500.0,0.00026575,7]
[344305997,1733334647503,-580.81,0.00026575,7]
[344305998,1733334647513,-500.0,0.00026575,7]
[344305999,1733334647523,-500.0,0.00026575,7]
[344306000,1733334647533,-500.0,0.00026575,7]
[344306001,1733334647542,-500.0,0.00026575,7]
[344306002,1733334647552,-500.0,0.00026575,7]
[344306003,1733334647562,-564.44,0.00026575,7]
[344306004,1733334647572,-288.2703676,0.00026575,7]
[344306005,1733334647582,-500.0,0.00026575,7]
[344306006,1733334647593,-500.0,0.00026575,7]
[344306007,1733334647603,-500.0,0.00026575,7]
[344306008,1733334647613,-500.0,0.00026575,7]
[344306009,1733334647623,-500.0,0.00026575,7]
[344306010,1733334647632,-654.24,0.00026575,7]
[344306011,1733334647642,-500.0,0.00026575,7]
[344306012,1733334647651,-500.0,0.00026575,7]
[344306013,1733334647661,-500.0,0.00026575,7]
[344306014,1733334647670,-500.0,0.00026575,7]
[344306015,1733334647680,-1352.12,0.00026575,7]
[344306016,1733334647690,-500.0,0.00026575,7]
[344306017,1733334647699,-500.0,0.00026575,7]
[344306018,1733334647709,-500.0,0.00026575,7]
[344306019,1733334647719,-500.0,0.00026575,7]
[344306020,1733334647729,-2703.86,0.00026575,7]
[344306021,1733334647739,-500.0,0.00026575,7]
[344306022,1733334647748,-1126.44,0.00026575,7]
[344306023,1733334647758,-500.0,0.00026575,7]
[344306024,1733334647768,-550.66,0.00026575,7]
[344306025,1733334647779,-500.0,0.00026575,7]
[344306026,1733334647788,-1275.99,0.00026575,7]
[344306027,1733334647798,-526.39,0.00026575,7]
[344306028,1733334647808,-500.0,0.00026575,7]
[344306029,1733334647818,-789.05,0.00026575,7]
[344306030,1733334647827,-417.6504523,0.00026575,7]
[344306031,1733334647838,-547.86,0.00026575,7]
[344306032,1733334647850,-933.92,0.00026575,7]
[344306033,1733334647860,-500.0,0.00026575,7]
[344306034,1733334647869,-591.06,0.00026575,7]
[344306035,1733334647879,-1813.04,0.00026575,7]
[344306036,1733334647888,-500.0,0.00026575,7]
[344306037,1733334647898,-506.93,0.00026575,7]
[344306038,1733334647908,-500.0,0.00026575,7]
[344306039,1733334647918,-500.0,0.00026575,7]
[344306040,1733334647928,-1598.25,0.00026575,7]
[344306041,1733334647937,-576.12,0.00026575,7]
[344306042,1733334647947,-500.0,0.00026575,7]
[344306043,1733334647958,-500.0,0.00026575,7]
[344306044,1733334647969,-500.0,0.00026575,7]
[344306045,1733334647980,-500.0,0.00026575,7]
[344306046,1733334647989,-728.12,0.00026575,7]
[344306047,1733334648000,-500.0,0.00026575,7]
[344306048,1733334648011,-566.61,0.00026575,7]
[344306049,1733334648021,-677.33,0.00026575,7]
[344306050,1733334648031,-500.0,0.00026575,7]
[344306051,1733334648043,-500.0,0.00026575,7]
[344306052,1733334648053,-536.73,0.00026575,7]
[344306053,1733334648063,-699.21,0.00026575,7]
[344306054,1733334648072,-500.0,0.00026575,7]
[344306055,1733334648083,-505.55,0.00026575,7]
[344306056,1733334648095,-6570.32,0.00026575,7]
[344306057,1733334648105,-500.0,0.00026575,7]
[344306058,1733334648115,-679.43,0.00026575,7]
[344306059,1733334648124,-500.0,0.00026575,7]
[344306060,1733334648136,-6305.9339123,0.00026757,2]
[344306061,1733334648146,-151.0,0.00026786,5]
[344306062,1733334648156,-1337.96756919,0.00026811,2]
[344306063,1733334648166,-500.0,0.00026849,7]
[344306064,1733334648176,-500.0,0.00026849,7]
[344306065,1733334648186,-500.0,0.00026849,7]
[344306066,1733334648196,-578.19917854,0.00026849,7]
[344306067,1733334648205,-500.0,0.00026849,7]
[344306068,1733334648215,-500.0,0.00026849,7]
[344306069,1733334648225,-309.12229785,0.00026849,7]
[344306070,1733334648236,-795.19,0.00026849,7]
[344306071,1733334648246,-500.0,0.00026849,7]
[344306072,1733334648255,-594.09,0.00026849,7]
[344306073,1733334648266,-160.50283263,0.00026849,7]
[344306074,1733334648276,-500.0,0.00026849,7]
[344306075,1733334648286,-500.0,0.00026849,7]
[344306076,1733334648296,-574.89,0.00026849,7]
[344306077,1733334648306,-1230.63,0.00026849,7]
[344306078,1733334648316,-500.0,0.00026849,7]
[344306079,1733334648326,-621.48,0.00026849,7]
[344306080,1733334648337,-500.0,0.00026849,7]
[344306081,1733334648351,-500.0,0.00026849,7]
[344306082,1733334648361,-580.81,0.00026849,7]
[344306083,1733334648371,-422.43263641,0.00026849,7]
[344306084,1733334649057,-336.09681163,0.00024657,2]
[344306085,1733334649067,-6136.86,0.00025479,7]
[344306086,1733334649077,-1152.58563229,0.00025753,7]
[344306087,1733334649090,-4984.27436771,0.00025753,7]
[344306088,1733334649105,-6136.86,0.00026027,7]
[344306089,1733334649115,-6136.86,0.00026301,7]
[344306090,1733334649125,-6136.86,0.00026575,7]
[344306091,1733334649137,-77.56736359,0.00026849,7]
[344306092,1733334649147,-500.0,0.00026849,7]
[344306093,1733334649157,-500.0,0.00026849,7]
[344306094,1733334649167,-500.0,0.00026849,7]
[344306095,1733334649177,-241.70924612,0.00026849,7]
[344306096,1733334649187,-564.44,0.00026849,7]
[344306097,1733334649197,-390.58183657,0.00026849,7]
[344306098,1733334649207,-500.0,0.00026849,7]
[344306099,1733334649217,-500.0,0.00026849,7]
[344306100,1733334649227,-500.0,0.00026849,7]
[344306101,1733334649237,-500.0,0.00026849,7]
[344306102,1733334649246,-654.24,0.00026849,7]
[344306103,1733334649256,-500.0,0.00026849,7]
[344306104,1733334649266,-500.0,0.00026849,7]
[344306105,1733334649277,-500.0,0.00026849,7]
[344306106,1733334649286,-500.0,0.00026849,7]
[344306107,1733334649298,-1352.12,0.00026849,7]
[344306108,1733334649309,-500.0,0.00026849,7]
[344306109,1733334649319,-500.0,0.00026849,7]
[344306110,1733334649330,-500.0,0.00026849,7]
[344306111,1733334649341,-500.0,0.00026849,7]
[344306112,1733334649358,-1795.06203601,0.00026849,7]
[344306113,1733334649447,-413.42860131,0.00026849,7]
[344306114,1733334649460,-495.36936268,0.00026849,7]
[344306115,1733334649470,-500.0,0.00026849,7]
[344306116,1733334649480,-1126.44,0.00026849,7]
[344306117,1733334649490,-500.0,0.00026849,7]
[344306118,1733334649502,-550.66,0.00026849,7]
[344306119,1733334649512,-500.0,0.00026849,7]
[344306120,1733334649522,-1257.69978732,0.00026849,7]
[344306121,1733334649675,-153.0,0.00026301,2]
[344306122,1733334649685,-18.29021268,0.00026849,7]
[344306123,1733334649695,-293.85978732,0.00026849,7]
[344306124,1733334649708,-232.53021268,0.00026849,7]
[344306125,1733334649717,-500.0,0.00026849,7]
[344306126,1733334649727,-789.05,0.00026849,7]
[344306127,1733334649737,-547.86,0.00026849,7]
[344306128,1733334649747,-933.92,0.00026849,7]
[344306129,1733334649756,-500.0,0.00026849,7]
[344306130,1733334649766,-591.06,0.00026849,7]
[344306131,1733334649778,-1813.04,0.00026849,7]
[344306132,1733334649787,-500.0,0.00026849,7]
[344306133,1733334649797,-506.93,0.00026849,7]
[344306134,1733334649807,-500.0,0.00026849,7]
[344306135,1733334649817,-500.0,0.00026849,7]
[344306136,1733334649827,-1598.25,0.00026849,7]
[344306137,1733334649836,-576.12,0.00026849,7]
[344306138,1733334649849,-500.0,0.00026849,7]
[344306139,1733334649858,-500.0,0.00026849,7]
[344306140,1733334649868,-500.0,0.00026849,7]
[344306141,1733334649878,-500.0,0.00026849,7]
[344306142,1733334649888,-728.12,0.00026849,7]
[344306143,1733334649898,-500.0,0.00026849,7]
[344306144,1733334649908,-566.61,0.00026849,7]
[344306145,1733334649918,-677.33,0.00026849,7]
[344306146,1733334649928,-500.0,0.00026849,7]
[344306147,1733334649938,-459.24732998,0.00026849,7]
[344306148,1733334649947,-536.73,0.00026849,7]
[344306149,1733334649962,-699.21,0.00026849,7]
[344306150,1733334649971,-500.0,0.00026849,7]
[344306151,1733334649980,-505.55,0.00026849,7]
[344306152,1733334649990,-6570.32,0.00026849,7]
[344306153,1733334650000,-500.0,0.00026849,7]
[344306154,1733334650011,-679.43,0.00026849,7]
[344306155,1733334650020,-500.0,0.00026849,7]
[344306156,1733334650030,-6136.86,0.00026849,7]
[344306157,1733334650040,-270.97402,0.00026921,2]
[344306158,1733334650051,-254.47239395,0.00026973,2]
[344306159,1733334650061,-500.0,0.00026973,2]
[344306160,1733334650072,-103979.28333925,0.00027,2]
[344306161,1733334650083,-50000.0,0.00027,14]
[344306162,1733334650097,-151.0,0.00027,7]
[344306163,1733334650107,-161.0,0.00027,2]
[344306164,1733334650118,-500.0,0.00027123,7]
[344306165,1733334650129,-500.0,0.00027123,7]
[344306166,1733334650139,-500.0,0.00027123,7]
[344306167,1733334650150,-500.0,0.00027123,7]
[344306168,1733334650160,-483.10658606,0.00027123,7]
[344306169,1733334650171,-795.19,0.00027123,7]
[344306170,1733334650181,-500.0,0.00027123,7]
[344306171,1733334650191,-594.09,0.00027123,7]
[344306172,1733334650201,-500.0,0.00027123,7]
[344306173,1733334650212,-561.61707219,0.00027123,7]